[Event "Late-Titled-Tuesday-Blitz-March-12-2024"]
[Site "Chess.com"]
[Date "2024.03.12"]
[Round "7"]
[White "CarlosjPineror"]
[Black "AccioChess"]
[Result "0-1"]
[WhiteElo "2560"]
[BlackElo "2451"]
[TimeControl "180+1"]
[EndTime "15:16:47 PDT"]
[Termination "AccioChess won by resignation"]

1. e4 {[%clk 0:03:00.9]} 1... e5 {[%clk 0:02:59.1]} 2. Nf3 {[%clk 0:02:54.2]}
2... Nc6 {[%clk 0:02:58.6]} 3. Bb5 {[%clk 0:02:52.7]} 3... Nf6 {[%clk
0:02:56.2]} 4. d3 {[%clk 0:02:49.9]} 4... Bc5 {[%clk 0:02:53.9]} 5. c3 {[%clk
0:02:49.9]} 5... d6 {[%clk 0:02:53.8]} 6. h3 {[%clk 0:02:47.3]} 6... O-O {[%clk
0:02:53.8]} 7. O-O {[%clk 0:02:47.3]} 7... Ne7 {[%clk 0:02:52.9]} 8. Re1 {[%clk
0:02:46.6]} 8... Ng6 {[%clk 0:02:52.6]} 9. Nbd2 {[%clk 0:02:46.8]} 9... c6
{[%clk 0:02:52.4]} 10. Ba4 {[%clk 0:02:46.6]} 10... b5 {[%clk 0:02:44.8]} 11.
Bb3 {[%clk 0:02:47]} 11... a5 {[%clk 0:02:43.9]} 12. a4 {[%clk 0:02:47.3]} 12...
h6 {[%clk 0:02:37.3]} 13. Nf1 {[%clk 0:02:46.5]} 13... Be6 {[%clk 0:02:35.8]}
14. Ng3 {[%clk 0:02:41]} 14... Qd7 {[%clk 0:02:35.2]} 15. d4 {[%clk 0:02:36.1]}
15... Bxb3 {[%clk 0:02:26.4]} 16. Qxb3 {[%clk 0:02:34.4]} 16... exd4 {[%clk
0:02:27.3]} 17. cxd4 {[%clk 0:02:33.7]} 17... Bb4 {[%clk 0:02:26.3]} 18. Bd2
{[%clk 0:02:30.9]} 18... Bxd2 {[%clk 0:02:23.9]} 19. Nxd2 {[%clk 0:02:31.8]}
19... Rfe8 {[%clk 0:02:22.3]} 20. Nf3 {[%clk 0:02:18.4]} 20... Re6 {[%clk
0:02:00.5]} 21. e5 {[%clk 0:02:13.7]} 21... dxe5 {[%clk 0:01:55.2]} 22. dxe5
{[%clk 0:02:14.6]} 22... Ne8 {[%clk 0:01:49.6]} 23. axb5 {[%clk 0:02:11.3]}
23... cxb5 {[%clk 0:01:50.5]} 24. Rad1 {[%clk 0:02:11.6]} 24... Qb7 {[%clk
0:01:50.3]} 25. Nf5 {[%clk 0:02:04.1]} 25... b4 {[%clk 0:01:33]} 26. N5d4 {[%clk
0:02:01.7]} 26... Re7 {[%clk 0:01:23.7]} 27. e6 {[%clk 0:01:57.6]} 27... fxe6
{[%clk 0:01:18.2]} 28. Rxe6 {[%clk 0:01:56.9]} 28... Rxe6 {[%clk 0:01:13.2]} 29.
Qxe6+ {[%clk 0:01:57.8]} 29... Kh7 {[%clk 0:01:12.9]} 30. h4 {[%clk 0:01:52.5]}
30... Nf6 {[%clk 0:01:10.8]} 31. b3 {[%clk 0:01:27.7]} 31... Qe4 {[%clk
0:01:09.1]} 32. Qc6 {[%clk 0:01:00.3]} 32... Nf4 {[%clk 0:00:47.6]} 33. Qb5
{[%clk 0:00:47.1]} 33... Rd8 {[%clk 0:00:20.4]} 34. Re1 {[%clk 0:00:29.5]} 34...
Qd5 {[%clk 0:00:19.8]} 35. Qb6 {[%clk 0:00:17.2]} 35... Rd6 {[%clk 0:00:12]} 36.
Re5 {[%clk 0:00:15.8]} 36... Qxe5 {[%clk 0:00:10.9]} 37. Nxe5 {[%clk 0:00:15.1]}
37... Rxb6 {[%clk 0:00:10.5]} 38. Nc4 {[%clk 0:00:14.1]} 38... Ra6 {[%clk
0:00:10.3]} 39. g3 {[%clk 0:00:13.8]} 39... N4d5 {[%clk 0:00:09.8]} 40. Nb5
{[%clk 0:00:14.1]} 40... a4 {[%clk 0:00:10]} 0-1

[Event "Late-Titled-Tuesday-Blitz-March-12-2024"]
[Site "Chess.com"]
[Date "2024.03.12"]
[Round "7"]
[White "Fandorine"]
[Black "FairChess_on_YouTube"]
[Result "0-1"]
[WhiteElo "2955"]
[BlackElo "3116"]
[TimeControl "180+1"]
[EndTime "15:16:48 PDT"]
[Termination "FairChess_on_YouTube won by resignation"]

1. d4 {[%clk 0:03:00.9]} 1... d5 {[%clk 0:03:00.3]} 2. c4 {[%clk 0:03:00.6]}
2... c6 {[%clk 0:03:00.8]} 3. Nf3 {[%clk 0:03:00.7]} 3... Nf6 {[%clk 0:03:01.1]}
4. Nc3 {[%clk 0:03:00.2]} 4... a6 {[%clk 0:03:01.4]} 5. g3 {[%clk 0:02:56.1]}
5... b5 {[%clk 0:03:00.4]} 6. b3 {[%clk 0:02:52.6]} 6... Bf5 {[%clk 0:03:00.6]}
7. Bg2 {[%clk 0:02:52.3]} 7... Ne4 {[%clk 0:03:00.8]} 8. Bb2 {[%clk 0:02:44.7]}
8... e6 {[%clk 0:02:57.7]} 9. O-O {[%clk 0:02:44]} 9... Be7 {[%clk 0:02:57.1]}
10. Ne5 {[%clk 0:02:41.2]} 10... Nxc3 {[%clk 0:02:56.3]} 11. Bxc3 {[%clk
0:02:41.2]} 11... O-O {[%clk 0:02:56.6]} 12. a4 {[%clk 0:02:33.7]} 12... b4
{[%clk 0:02:42]} 13. Bb2 {[%clk 0:02:32.7]} 13... a5 {[%clk 0:02:42.2]} 14. Rc1
{[%clk 0:02:32.4]} 14... f6 {[%clk 0:02:41.3]} 15. Nd3 {[%clk 0:02:26.5]} 15...
Nd7 {[%clk 0:02:35.1]} 16. Re1 {[%clk 0:02:23.1]} 16... Bxd3 {[%clk 0:02:18.3]}
17. exd3 {[%clk 0:02:17.9]} 17... e5 {[%clk 0:01:36.1]} 18. cxd5 {[%clk
0:02:16.1]} 18... c5 {[%clk 0:01:36.5]} 19. d6 {[%clk 0:02:05.5]} 19... Bxd6
{[%clk 0:01:36.2]} 20. dxc5 {[%clk 0:02:01.6]} 20... Nxc5 {[%clk 0:01:33.2]} 21.
d4 {[%clk 0:01:57.1]} 21... exd4 {[%clk 0:01:32.7]} 22. Bxa8 {[%clk 0:01:47.2]}
22... Qxa8 {[%clk 0:01:32.8]} 23. Bxd4 {[%clk 0:01:28.8]} 23... Ne4 {[%clk
0:01:26.3]} 24. Qf3 {[%clk 0:01:03.2]} 24... f5 {[%clk 0:01:26.3]} 25. Rcd1
{[%clk 0:00:52.6]} 25... Qc6 {[%clk 0:01:18.8]} 26. h4 {[%clk 0:00:46.2]} 26...
Bb8 {[%clk 0:01:06.2]} 27. Rc1 {[%clk 0:00:39.1]} 27... Qd5 {[%clk 0:00:48.2]}
28. Red1 {[%clk 0:00:27.1]} 28... Qe6 {[%clk 0:00:47.7]} 29. Qd3 {[%clk
0:00:18.8]} 29... Qg6 {[%clk 0:00:33.3]} 30. Be5 {[%clk 0:00:08.3]} 30... Bxe5
{[%clk 0:00:14.3]} 31. Qd5+ {[%clk 0:00:08.2]} 31... Kh8 {[%clk 0:00:11.7]} 32.
Qxe5 {[%clk 0:00:08.8]} 32... Nc3 {[%clk 0:00:10]} 33. Rd7 {[%clk 0:00:08.5]}
33... f4 {[%clk 0:00:09.5]} 34. h5 {[%clk 0:00:08.5]} 34... Qg4 {[%clk
0:00:09.8]} 35. h6 {[%clk 0:00:07.6]} 35... Qxd7 {[%clk 0:00:09.4]} 0-1

[Event "Late-Titled-Tuesday-Blitz-March-12-2024"]
[Site "Chess.com"]
[Date "2024.03.12"]
[Round "7"]
[White "ArturoCaceres"]
[Black "Lion-Al-Messi"]
[Result "0-1"]
[WhiteElo "2446"]
[BlackElo "2591"]
[TimeControl "180+1"]
[EndTime "15:16:48 PDT"]
[Termination "Lion-Al-Messi won by checkmate"]

1. Nf3 {[%clk 0:03:00.7]} 1... Nf6 {[%clk 0:02:59.6]} 2. b3 {[%clk 0:03:01]}
2... b6 {[%clk 0:02:59.3]} 3. Bb2 {[%clk 0:03:00.9]} 3... Bb7 {[%clk 0:02:59.8]}
4. d4 {[%clk 0:03:01.3]} 4... e6 {[%clk 0:02:59.3]} 5. Nbd2 {[%clk 0:03:01.8]}
5... Be7 {[%clk 0:02:59.2]} 6. e3 {[%clk 0:03:02]} 6... O-O {[%clk 0:02:59.5]}
7. Bd3 {[%clk 0:03:02.5]} 7... c5 {[%clk 0:02:59]} 8. Qe2 {[%clk 0:03:01.4]}
8... cxd4 {[%clk 0:02:57.7]} 9. exd4 {[%clk 0:03:01.9]} 9... Nc6 {[%clk
0:02:57]} 10. a3 {[%clk 0:03:01.9]} 10... Nd5 {[%clk 0:02:53.4]} 11. Qe4 {[%clk
0:02:55.2]} 11... f5 {[%clk 0:02:52.7]} 12. Qe2 {[%clk 0:02:52.9]} 12... Nf4
{[%clk 0:02:52.5]} 13. Qf1 {[%clk 0:02:53.5]} 13... Nxd3+ {[%clk 0:02:28.6]} 14.
Qxd3 {[%clk 0:02:53.3]} 14... Bf6 {[%clk 0:02:25.2]} 15. O-O {[%clk 0:02:52.7]}
15... Ne7 {[%clk 0:02:24.7]} 16. Rfe1 {[%clk 0:02:47]} 16... Nd5 {[%clk
0:02:25]} 17. c4 {[%clk 0:02:44.4]} 17... Nf4 {[%clk 0:02:25.1]} 18. Qe3 {[%clk
0:02:44.6]} 18... Bg5 {[%clk 0:02:23.3]} 19. Qc3 {[%clk 0:02:37.7]} 19... Qf6
{[%clk 0:02:12.4]} 20. Nf1 {[%clk 0:02:22]} 20... Qg6 {[%clk 0:02:03]} 21. Ng3
{[%clk 0:02:20.5]} 21... Nh3+ {[%clk 0:01:59.5]} 22. gxh3 {[%clk 0:02:18.5]}
22... f4 {[%clk 0:01:59.9]} 23. Ne5 {[%clk 0:02:12.5]} 23... Qh6 {[%clk
0:01:56]} 24. d5 {[%clk 0:02:03.6]} 24... fxg3 {[%clk 0:01:53.2]} 25. hxg3
{[%clk 0:01:55.7]} 25... Bd2 {[%clk 0:01:52.5]} 26. Ng4 {[%clk 0:01:52.3]} 26...
Qg5 {[%clk 0:01:49.7]} 27. Qd3 {[%clk 0:01:45.9]} 27... Bxe1 {[%clk 0:01:46.8]}
28. Rxe1 {[%clk 0:01:46.8]} 28... exd5 {[%clk 0:01:41.6]} 29. Re5 {[%clk
0:01:45.6]} 29... Qg6 {[%clk 0:01:33.4]} 30. Qd4 {[%clk 0:01:41.6]} 30... dxc4
{[%clk 0:01:23.7]} 31. Qxc4+ {[%clk 0:01:06.7]} 31... Kh8 {[%clk 0:01:22.3]} 32.
Re1 {[%clk 0:00:58.5]} 32... Rae8 {[%clk 0:01:14]} 33. Ne5 {[%clk 0:00:56.9]}
33... Qe6 {[%clk 0:01:00.9]} 34. Qc3 {[%clk 0:00:33.1]} 34... d6 {[%clk
0:00:51.7]} 35. Nd3 {[%clk 0:00:31.1]} 35... Qf7 {[%clk 0:00:44.6]} 36. Rxe8
{[%clk 0:00:18]} 36... Rxe8 {[%clk 0:00:45.5]} 37. Nf4 {[%clk 0:00:18.6]} 37...
Qf6 {[%clk 0:00:36.7]} 38. Qd2 {[%clk 0:00:11.7]} 38... Qxb2 {[%clk 0:00:33.6]}
39. Ng6+ {[%clk 0:00:02.7]} 39... hxg6 {[%clk 0:00:30.6]} 40. Qf4 {[%clk
0:00:02.1]} 40... Re1+ {[%clk 0:00:28]} 41. Kh2 {[%clk 0:00:01.2]} 41... Rh1#
{[%clk 0:00:26.6]} 0-1

[Event "Late-Titled-Tuesday-Blitz-March-12-2024"]
[Site "Chess.com"]
[Date "2024.03.12"]
[Round "7"]
[White "lluiss"]
[Black "Bongcloudtransvestit"]
[Result "0-1"]
[WhiteElo "2237"]
[BlackElo "2448"]
[TimeControl "180+1"]
[EndTime "15:16:48 PDT"]
[Termination "Bongcloudtransvestit won by resignation"]

1. e4 {[%clk 0:03:00.9]} 1... e6 {[%clk 0:02:52.9]} 2. d4 {[%clk 0:03:00.2]}
2... d5 {[%clk 0:02:52.7]} 3. e5 {[%clk 0:03:00.6]} 3... c5 {[%clk 0:02:52.3]}
4. dxc5 {[%clk 0:03:01.1]} 4... Nc6 {[%clk 0:02:53.2]} 5. Nf3 {[%clk 0:03:00.1]}
5... Bxc5 {[%clk 0:02:53.2]} 6. Bd3 {[%clk 0:02:59.7]} 6... f6 {[%clk
0:02:53.4]} 7. exf6 {[%clk 0:02:50.7]} 7... Nxf6 {[%clk 0:02:48.9]} 8. O-O
{[%clk 0:02:51]} 8... O-O {[%clk 0:02:49.8]} 9. c4 {[%clk 0:02:51.1]} 9... e5
{[%clk 0:02:48.3]} 10. cxd5 {[%clk 0:02:49.7]} 10... Qxd5 {[%clk 0:02:47.9]} 11.
Nc3 {[%clk 0:02:47.2]} 11... Qd8 {[%clk 0:02:40.7]} 12. Ne4 {[%clk 0:02:37.8]}
12... Nxe4 {[%clk 0:01:49]} 13. Bxe4 {[%clk 0:02:38.7]} 13... Qxd1 {[%clk
0:01:47.3]} 14. Rxd1 {[%clk 0:02:36.4]} 14... Bg4 {[%clk 0:01:48]} 15. Be3
{[%clk 0:01:47.6]} 15... Nd4 {[%clk 0:00:53.2]} 16. Bxd4 {[%clk 0:01:19.9]}
16... exd4 {[%clk 0:00:36.6]} 17. Bxb7 {[%clk 0:01:18.8]} 17... Rad8 {[%clk
0:00:26.8]} 18. h3 {[%clk 0:01:14.6]} 18... Bh5 {[%clk 0:00:18.3]} 19. Rac1
{[%clk 0:01:11.6]} 19... Bb6 {[%clk 0:00:18.1]} 20. Ba6 {[%clk 0:00:34.7]} 20...
Bxf3 {[%clk 0:00:15]} 21. gxf3 {[%clk 0:00:34]} 21... Rxf3 {[%clk 0:00:15.7]}
22. Bf1 {[%clk 0:00:32.4]} 22... d3 {[%clk 0:00:14.2]} 23. Rd2 {[%clk
0:00:27.4]} 23... Ba5 {[%clk 0:00:12.3]} 24. Rxd3 {[%clk 0:00:26.7]} 24... Rfxd3
{[%clk 0:00:11.8]} 25. Bxd3 {[%clk 0:00:25.9]} 25... Rxd3 {[%clk 0:00:12.7]} 26.
Rc8+ {[%clk 0:00:25.8]} 26... Kf7 {[%clk 0:00:12.8]} 27. Rc2 {[%clk 0:00:25.4]}
27... Bb6 {[%clk 0:00:11.3]} 28. Kg2 {[%clk 0:00:23.8]} 28... g5 {[%clk
0:00:10.6]} 29. Re2 {[%clk 0:00:23.4]} 29... h5 {[%clk 0:00:10.2]} 30. Rc2
{[%clk 0:00:23.4]} 30... Kf6 {[%clk 0:00:10.3]} 31. Re2 {[%clk 0:00:23.3]} 31...
Kf5 {[%clk 0:00:10.6]} 32. Rc2 {[%clk 0:00:22.7]} 32... g4 {[%clk 0:00:10.8]}
33. hxg4+ {[%clk 0:00:22.8]} 33... hxg4 {[%clk 0:00:11.7]} 34. Re2 {[%clk
0:00:22.8]} 34... Rf3 {[%clk 0:00:11.5]} 35. Rc2 {[%clk 0:00:22.2]} 35... Rf4
{[%clk 0:00:11.2]} 36. Rd2 {[%clk 0:00:21.5]} 36... Ke5 {[%clk 0:00:11.2]} 37.
Re2+ {[%clk 0:00:21.5]} 37... Kd4 {[%clk 0:00:11.7]} 38. Rd2+ {[%clk 0:00:21.4]}
38... Kc4 {[%clk 0:00:11.7]} 39. Rc2+ {[%clk 0:00:21.6]} 39... Kd3 {[%clk
0:00:11.8]} 40. Kg3 {[%clk 0:00:17.3]} 40... Kxc2 {[%clk 0:00:09.7]} 41. Kxf4
{[%clk 0:00:17.3]} 41... Bxf2 {[%clk 0:00:10.3]} 42. Kxg4 {[%clk 0:00:17.1]}
42... Kxb2 {[%clk 0:00:11.1]} 0-1

[Event "Late-Titled-Tuesday-Blitz-March-12-2024"]
[Site "Chess.com"]
[Date "2024.03.12"]
[Round "7"]
[White "1g60-1"]
[Black "PawnEatingZombie"]
[Result "1-0"]
[WhiteElo "2324"]
[BlackElo "2109"]
[TimeControl "180+1"]
[EndTime "15:16:52 PDT"]
[Termination "1g60-1 won on time"]

1. Nf3 {[%clk 0:03:00.9]} 1... Nf6 {[%clk 0:02:58.1]} 2. e3 {[%clk 0:03:01.2]}
2... g6 {[%clk 0:02:57.9]} 3. c4 {[%clk 0:03:00.8]} 3... Bg7 {[%clk 0:02:57.9]}
4. Nc3 {[%clk 0:03:01.5]} 4... O-O {[%clk 0:02:56.6]} 5. d4 {[%clk 0:03:02.2]}
5... d6 {[%clk 0:02:56.6]} 6. Be2 {[%clk 0:03:02.6]} 6... Nbd7 {[%clk
0:02:46.7]} 7. O-O {[%clk 0:03:02.5]} 7... Re8 {[%clk 0:02:45.9]} 8. b3 {[%clk
0:03:02.1]} 8... e5 {[%clk 0:02:41.2]} 9. Bb2 {[%clk 0:02:58.9]} 9... c6 {[%clk
0:02:22.7]} 10. h3 {[%clk 0:02:56.3]} 10... Qc7 {[%clk 0:02:21]} 11. Rc1 {[%clk
0:02:55.2]} 11... a5 {[%clk 0:02:17.6]} 12. d5 {[%clk 0:02:51.8]} 12... Nc5
{[%clk 0:02:11.5]} 13. Nd2 {[%clk 0:02:43.6]} 13... Bf5 {[%clk 0:02:00.7]} 14.
Ndb1 {[%clk 0:02:38.3]} 14... Bxb1 {[%clk 0:01:42.7]} 15. Nxb1 {[%clk
0:02:33.2]} 15... Nfe4 {[%clk 0:01:32.8]} 16. Nd2 {[%clk 0:02:23.4]} 16... f5
{[%clk 0:01:27.9]} 17. Nxe4 {[%clk 0:02:23.1]} 17... Nxe4 {[%clk 0:01:22.4]} 18.
Bf3 {[%clk 0:02:21.4]} 18... Nc5 {[%clk 0:01:18.8]} 19. Ba3 {[%clk 0:02:10.8]}
19... e4 {[%clk 0:01:11.2]} 20. Be2 {[%clk 0:02:10.9]} 20... cxd5 {[%clk
0:01:01.6]} 21. Qxd5+ {[%clk 0:01:59.5]} 21... Kh8 {[%clk 0:01:01.3]} 22. Rfd1
{[%clk 0:01:56.5]} 22... Be5 {[%clk 0:00:47.3]} 23. f4 {[%clk 0:01:32]} 23...
exf3 {[%clk 0:00:39.1]} 24. Bxf3 {[%clk 0:01:32.1]} 24... Rac8 {[%clk
0:00:27.9]} 25. Kh1 {[%clk 0:00:58.9]} 25... b6 {[%clk 0:00:26.3]} 26. Rc2
{[%clk 0:00:49.4]} 26... Qe7 {[%clk 0:00:26]} 27. Rcd2 {[%clk 0:00:44.3]} 27...
Qg5 {[%clk 0:00:25.3]} 28. Bb2 {[%clk 0:00:27.6]} 28... Bxb2 {[%clk 0:00:15.7]}
29. Rxb2 {[%clk 0:00:28.2]} 29... Rxe3 {[%clk 0:00:09.3]} 30. Qxd6 {[%clk
0:00:23]} 30... Rce8 {[%clk 0:00:09.7]} 31. Rbb1 {[%clk 0:00:16.3]} 31... Qh4
{[%clk 0:00:03]} 32. Qd4+ {[%clk 0:00:14.7]} 32... Qxd4 {[%clk 0:00:02.2]} 33.
Rxd4 {[%clk 0:00:15.6]} 33... Re1+ {[%clk 0:00:02.4]} 34. Rxe1 {[%clk
0:00:15.4]} 34... Rxe1+ {[%clk 0:00:03.1]} 35. Kh2 {[%clk 0:00:16.3]} 35... Ra1
{[%clk 0:00:03.2]} 36. Rd8+ {[%clk 0:00:14.8]} 36... Kg7 {[%clk 0:00:02.9]} 37.
Rb8 {[%clk 0:00:15.7]} 37... Rxa2 {[%clk 0:00:02.3]} 38. Rxb6 {[%clk 0:00:16]}
38... Rb2 {[%clk 0:00:02.8]} 39. Rb5 {[%clk 0:00:15.5]} 39... Nxb3 {[%clk
0:00:02.5]} 40. Bd5 {[%clk 0:00:15.5]} 40... Rb1 {[%clk 0:00:01.9]} 41. c5
{[%clk 0:00:13.9]} 1-0

[Event "Late-Titled-Tuesday-Blitz-March-12-2024"]
[Site "Chess.com"]
[Date "2024.03.12"]
[Round "7"]
[White "Korchmar_Vasiliy"]
[Black "remi04"]
[Result "0-1"]
[WhiteElo "2703"]
[BlackElo "2898"]
[TimeControl "180+1"]
[EndTime "15:16:53 PDT"]
[Termination "remi04 won by checkmate"]

1. e4 {[%clk 0:03:00.9]} 1... c5 {[%clk 0:03:00.2]} 2. d4 {[%clk 0:03:00.6]}
2... cxd4 {[%clk 0:03:00.2]} 3. Qxd4 {[%clk 0:03:01.5]} 3... Nc6 {[%clk
0:03:00]} 4. Qd3 {[%clk 0:03:02]} 4... Nf6 {[%clk 0:02:59.6]} 5. Nc3 {[%clk
0:03:02.5]} 5... g6 {[%clk 0:02:57.8]} 6. Nf3 {[%clk 0:03:03]} 6... d6 {[%clk
0:02:56.6]} 7. Be2 {[%clk 0:03:03.5]} 7... Bg7 {[%clk 0:02:57.1]} 8. O-O {[%clk
0:03:04.2]} 8... O-O {[%clk 0:02:57.3]} 9. Nd5 {[%clk 0:03:04.9]} 9... Nd7
{[%clk 0:02:57.6]} 10. c3 {[%clk 0:03:04.6]} 10... Nc5 {[%clk 0:02:56.4]} 11.
Qc2 {[%clk 0:03:04.9]} 11... e6 {[%clk 0:02:56.4]} 12. Ne3 {[%clk 0:03:05.2]}
12... f5 {[%clk 0:02:56.2]} 13. exf5 {[%clk 0:03:04.8]} 13... gxf5 {[%clk
0:02:55.2]} 14. Rd1 {[%clk 0:03:05.1]} 14... Qe7 {[%clk 0:02:48.4]} 15. Nf1
{[%clk 0:03:02.6]} 15... Ne4 {[%clk 0:02:45.1]} 16. Ng3 {[%clk 0:03:00.7]} 16...
d5 {[%clk 0:02:44.6]} 17. Nh5 {[%clk 0:02:54.7]} 17... Bh8 {[%clk 0:02:34.8]}
18. Bh6 {[%clk 0:02:49.5]} 18... Re8 {[%clk 0:02:32.9]} 19. c4 {[%clk
0:02:45.9]} 19... d4 {[%clk 0:02:21.9]} 20. a3 {[%clk 0:02:28.1]} 20... Qf7
{[%clk 0:02:18.1]} 21. Ng5 {[%clk 0:02:19.5]} 21... Qg6 {[%clk 0:02:15.2]} 22.
Nxe4 {[%clk 0:02:13.4]} 22... fxe4 {[%clk 0:02:16.1]} 23. Nf4 {[%clk 0:01:26.7]}
23... Qxh6 {[%clk 0:02:15.1]} 24. Qxe4 {[%clk 0:01:27.3]} 24... Be5 {[%clk
0:01:54]} 25. Nh5 {[%clk 0:01:20.3]} 25... Kh8 {[%clk 0:01:39.7]} 26. Rd3 {[%clk
0:01:07]} 26... Qg6 {[%clk 0:01:36.7]} 27. Qh4 {[%clk 0:01:03.8]} 27... Rg8
{[%clk 0:01:36.5]} 28. g3 {[%clk 0:00:46.4]} 28... Bd7 {[%clk 0:01:35]} 29. Rf3
{[%clk 0:00:34.7]} 29... Raf8 {[%clk 0:01:32]} 30. Bd3 {[%clk 0:00:35.2]} 30...
Qh6 {[%clk 0:01:27.9]} 31. Rxf8 {[%clk 0:00:31.1]} 31... Rxf8 {[%clk 0:01:28.8]}
32. Re1 {[%clk 0:00:16.8]} 32... Be8 {[%clk 0:01:28.4]} 33. Rxe5 {[%clk
0:00:17.1]} 33... Nxe5 {[%clk 0:01:28]} 34. Qxd4 {[%clk 0:00:17.8]} 34... Qxh5
{[%clk 0:01:26.3]} 35. f4 {[%clk 0:00:18]} 35... Bg6 {[%clk 0:01:20.2]} 36. Qd6
{[%clk 0:00:06.9]} 36... Nf3+ {[%clk 0:01:10.9]} 37. Kg2 {[%clk 0:00:06.1]}
37... Ne1+ {[%clk 0:01:01.3]} 38. Kf1 {[%clk 0:00:05.3]} 38... Bxd3+ {[%clk
0:01:00]} 39. Kxe1 {[%clk 0:00:05.8]} 39... Qe2# {[%clk 0:00:09.4]} 0-1

[Event "Late-Titled-Tuesday-Blitz-March-12-2024"]
[Site "Chess.com"]
[Date "2024.03.12"]
[Round "7"]
[White "Perecke"]
[Black "Rodalquilar"]
[Result "0-1"]
[WhiteElo "2619"]
[BlackElo "2796"]
[TimeControl "180+1"]
[EndTime "15:16:53 PDT"]
[Termination "Rodalquilar won on time"]

1. e4 {[%clk 0:03:00.9]} 1... d5 {[%clk 0:03:00.2]} 2. exd5 {[%clk 0:03:00.1]}
2... Qxd5 {[%clk 0:03:01.1]} 3. Nc3 {[%clk 0:03:00.1]} 3... Qa5 {[%clk
0:03:01.3]} 4. Bc4 {[%clk 0:02:59.8]} 4... Nf6 {[%clk 0:03:01.4]} 5. d3 {[%clk
0:02:59.9]} 5... Bg4 {[%clk 0:03:01.1]} 6. Nf3 {[%clk 0:02:56.8]} 6... Nc6
{[%clk 0:02:57.4]} 7. h3 {[%clk 0:02:57.3]} 7... Qh5 {[%clk 0:02:56.2]} 8. O-O
{[%clk 0:02:06.9]} 8... Bxf3 {[%clk 0:02:54.5]} 9. Qxf3 {[%clk 0:02:07.8]} 9...
Qxf3 {[%clk 0:02:54.3]} 10. gxf3 {[%clk 0:02:08.7]} 10... Ne5 {[%clk 0:02:42.7]}
11. Kg2 {[%clk 0:02:08.4]} 11... Nxc4 {[%clk 0:02:42.1]} 12. dxc4 {[%clk
0:02:07.9]} 12... e6 {[%clk 0:02:34.1]} 13. Nb5 {[%clk 0:02:05]} 13... Bd6
{[%clk 0:01:46.1]} 14. c5 {[%clk 0:01:51.3]} 14... a6 {[%clk 0:01:46.5]} 15.
cxd6 {[%clk 0:01:28.5]} 15... axb5 {[%clk 0:01:46.7]} 16. dxc7 {[%clk
0:01:29.4]} 16... Rc8 {[%clk 0:01:47]} 17. a4 {[%clk 0:01:05.2]} 17... b4 {[%clk
0:01:46.8]} 18. Bd2 {[%clk 0:00:41.1]} 18... Nd5 {[%clk 0:01:46.7]} 19. c3
{[%clk 0:00:40.8]} 19... bxc3 {[%clk 0:01:44.1]} 20. Bxc3 {[%clk 0:00:40.9]}
20... Rxc7 {[%clk 0:01:44.1]} 21. Be5 {[%clk 0:00:40.2]} 21... Rc6 {[%clk
0:01:39.9]} 22. Rfc1 {[%clk 0:00:40]} 22... Kd7 {[%clk 0:01:39.8]} 23. Rxc6
{[%clk 0:00:39]} 23... Kxc6 {[%clk 0:01:40.4]} 24. Rc1+ {[%clk 0:00:39.1]} 24...
Kd7 {[%clk 0:01:40.9]} 25. b4 {[%clk 0:00:29.4]} 25... f6 {[%clk 0:01:37.4]} 26.
Bd4 {[%clk 0:00:29.8]} 26... Nxb4 {[%clk 0:01:21]} 27. Rb1 {[%clk 0:00:27.9]}
27... Nc6 {[%clk 0:01:21.4]} 28. Rxb7+ {[%clk 0:00:27.9]} 28... Kc8 {[%clk
0:01:21.6]} 29. Rxg7 {[%clk 0:00:22.7]} 29... Nxd4 {[%clk 0:01:21.9]} 30. a5
{[%clk 0:00:21.1]} 30... h5 {[%clk 0:01:06.2]} 31. a6 {[%clk 0:00:17.6]} 31...
Kb8 {[%clk 0:01:06.5]} 32. Rf7 {[%clk 0:00:12.4]} 32... f5 {[%clk 0:01:05.6]}
33. Rd7 {[%clk 0:00:10.8]} 33... Rg8+ {[%clk 0:01:05.5]} 34. Kf1 {[%clk
0:00:08.6]} 34... Nxf3 {[%clk 0:01:06]} 35. Ke2 {[%clk 0:00:07.2]} 35... Ng5
{[%clk 0:01:03.6]} 36. h4 {[%clk 0:00:06.6]} 36... Ne4 {[%clk 0:01:04.1]} 37.
Ke3 {[%clk 0:00:02.4]} 37... Nc5 {[%clk 0:01:00.4]} 38. a7+ {[%clk 0:00:02.9]}
38... Ka8 {[%clk 0:01:00.4]} 39. Rh7 {[%clk 0:00:03.8]} 39... Rd8 {[%clk
0:00:48.9]} 40. Kf4 {[%clk 0:00:03.5]} 40... Rd5 {[%clk 0:00:46.8]} 41. Kg5
{[%clk 0:00:02.8]} 41... Ne4+ {[%clk 0:00:44.7]} 42. Kxh5 {[%clk 0:00:03.3]}
42... Nxf2 {[%clk 0:00:45.3]} 43. Kg5 {[%clk 0:00:03.2]} 43... Ne4+ {[%clk
0:00:36.7]} 44. Kf4 {[%clk 0:00:03.4]} 44... Ra5 {[%clk 0:00:29]} 45. h5 {[%clk
0:00:01.3]} 45... Rxa7 {[%clk 0:00:29.3]} 46. Rh8+ {[%clk 0:00:01.4]} 46... Kb7
{[%clk 0:00:29.8]} 0-1